Cogmind - Beta 16 @@@ ROGUE MODE // 2025.12.10 @ 00:26:55 Player: DietSnapple Result: Destroyed by G-67 Veteran with Field Laser Performance ------------- Evolutions (6) 3000 Regions Visited (11) 2200 Robots Destroyed (116) 580 Value Destroyed (4000) 4000 Prototype IDs (28) 560 Alien Tech Used (0) 0 Bonus (944) 944 TOTAL SCORE: 11284 Bonus ------- High Alert Combat Kills 107 Follower Combat Kills 37 Registered with UFD 300 Met Optimus in HQ 500 Cogmind --------- Core Integrity 0/1150 Matter 242/350 Energy 313/395 System Corruption 11% Temperature Cool (81) Movement Rolling (125) Ox2 Location -4/Factory Parts ------- > --- POWER (2) -------- Antimatter Reactor Light Antimatter Reactor > --- PROPULSION (6) --- Wheel Compact Wheel Compact Wheel Compact Wheel Improved Gyrokinetic Inverter > --- UTILITY (9) ------ Huge Storage Unit Small Matter Pod Advanced Trap Scanner Precision Energy Filter System Restoration Module Field Recycling Unit > --- WEAPON (2) ------- Coil Gun Heavy Gauss Cannon > --- INVENTORY (25) --- Myomer Leg Large Botcube Peak State ------------ > --- POWER ------------ Light Angular Momentum Engine Neutrino Core > --- PROPULSION ------- Nuclear Pulse Array Nuclear Pulse Array > --- UTILITY ---------- Improved Cryofiber Web Improved Terrain Scan Processor Improved Terrain Scan Processor Improved Melee Analysis Suite Core Analyzer Improved Corruption Screen > --- WEAPON ----------- Improved Plasma Cutter Kinetic Spear > --- INVENTORY -------- Huge Storage Unit Heavy Plasma Cannon Heavy Plasma Cannon Large Botcube [Rating: 76] Favorites ----------- Power Ion Engine Engine Ion Engine Power Core Micro Nuclear Core Reactor Cold Fusion Reactor Propulsion Light Treads Treads Light Treads Leg Flexi-carbon Leg Wheel Compact Wheel Hover Unit Improved Gyrokinetic Inverter Flight Unit Nuclear Pulse Array Utility Large Storage Unit Device Transmission Jammer Storage Large Storage Unit Processor Core Analyzer Hackware Hacking Suite Protection Hardened Light Armor Plating Weapon Advanced Beam Cannon Energy Gun Small Laser Energy Cannon Advanced Beam Cannon Ballistic Gun Overtuned Barrage Gun Ballistic Cannon Improved Light Cannon Launcher Grenade Launcher Special Weapon Improved Plasma Cutter Slashing Weapon Scythe Piercing Weapon Kinetic Spear Build | -11 -10 -10 -9 -9 -6 -6 -6 -5 -4 -4 -4 ------- Run | Yrd Mat Sub Rec Scr Fac Low Low Fac Fac Was Fac Slots Evolved 12 | . . . . . 8 . . 2 2 . . Power 1 | . . . . . 1 . . . . . . Propulsion 4 | . . . . . 2 . . . 2 . . Utility 7 | . . . . . 5 . . 2 . . . Weapon . | . . . . . . . . . . . . Parts Attached 126 | 8 12 6 1 6 34 18 1 11 5 . 24 Power 23 | 2 1 . 1 2 8 2 . 2 1 . 4 Engine 13 | 2 1 . 1 2 4 . . 1 . . 2 Core 6 | . . . . . 3 2 . 1 . . . Reactor 4 | . . . . . 1 . . . 1 . 2 Propulsion 39 | 2 4 3 . 2 9 6 . 2 2 . 9 Treads 15 | 2 4 3 . 2 2 2 . . . . . Leg 4 | . . . . . . 4 . . . . . Wheel 12 | . . . . . 7 . . . . . 5 Hover 4 | . . . . . . . . . 2 . 2 Flight 4 | . . . . . . . . 2 . . 2 Utility 38 | 2 2 1 . 1 12 6 . 4 2 . 8 Device 14 | 1 1 . . . 4 2 . . 1 . 5 Storage 7 | 1 1 . . . 3 . . . . . 2 Processor 8 | . . . . . 1 2 . 4 1 . . Hackware 2 | . . . . . 1 . . . . . 1 Protection 7 | . . 1 . 1 3 2 . . . . . Artifact . | . . . . . . . . . . . . Weapon 26 | 2 5 2 . 1 5 4 1 3 . . 3 Energy Gun 3 | 1 2 . . . . . . . . . . Energy Cannon 8 | . 2 1 . . 3 1 . 1 . . . Ballistic Gun 5 | 1 1 . . . 1 . 1 . . . 1 Ballistic Cannon 3 | . . . . 1 1 . . . . . 1 Launcher 2 | . . 1 . . . 1 . . . . . Special Weapon 3 | . . . . . . 2 . 1 . . . Impact Weapon . | . . . . . . . . . . . . Slashing Weapon 1 | . . . . . . . . . . . 1 Piercing Weapon 1 | . . . . . . . . 1 . . . Special Melee Weapon . | . . . . . . . . . . . . Unidentified Prototypes 8 | . 1 . . . 4 1 . 1 . . 1 Parts Lost 56 | . 2 4 . . 15 21 1 2 1 . 10 Power 13 | . . 2 . . 5 4 . . . . 2 Propulsion 18 | . . 1 . . 3 7 . 1 . . 6 Utility 14 | . 1 . . . 5 5 1 . . . 2 Weapon 11 | . 1 1 . . 2 5 . 1 1 . . Highest Loss Streak 10 | . 1 2 . . 3 10 1 1 1 . 5 To Critical Strikes . | . . . . . . . . . . . . Average Backups 12 | 4 10 12 10 11 16 15 2 2 2 3 2 Power . | . 1 . . . 1 . . . 1 1 . Propulsion 2 | 2 3 2 2 2 2 2 . . . 1 1 Utility 5 | . 2 5 6 5 7 9 1 1 1 1 . Weapon 2 | . 3 3 2 2 2 . 1 1 . . . Tool/Special . | . . . . . . . . . . . . Unused Backups 47 | . 6 2 . 8 22 7 . 1 . . 1 Power 2 | . . . . . 2 . . . . . . Propulsion 16 | . 3 . . . 12 . . . . . 1 Utility 17 | . 2 1 . 2 5 7 . . . . . Weapon 8 | . 1 1 . 4 1 . . 1 . . . Tool/Special 4 | . . . . 2 2 . . . . . . Average Slot Usage (%) 85 | . 94 99 93 100 82 59 16 37 13 21 39 Engine 9 | . 14 13 7 14 4 1 . 1 . . . Core 2 | . . . . . 6 5 . . . . . Treads 18 | . 28 27 28 28 11 . . . . . . Wheel 3 | . . . . . 10 2 . . . . 9 Device 8 | . 8 7 . . 21 6 7 4 3 5 11 Storage 10 | . 14 14 14 14 7 8 . . . . 2 Processor 1 | . . . . . 1 7 6 15 3 . . Protection 7 | . . 6 14 14 6 2 . . . . . Energy Cannon 11 | . 7 24 28 15 3 5 . 1 . . . Ballistic Gun 1 | . 10 . . . 2 . 1 2 . . 1 Ballistic Cannon 3 | . . . . 12 2 . . . . . 1 Peak Build Rating 76 | 7 13 16 15 20 74 64 15 76 28 28 63 Average Rating 29 | 4 8 14 14 16 57 44 12 42 16 28 34 On Entrance 17 | . 7 13 14 15 20 54 15 15 3 28 28 Avg Prop Armor Cover (%) 8 | . . . . . 5 . . . 20 . 6 Naked Turns 93 | . . . . . . . . 30 15 . 48 Heaviest Build 143 | 13 34 36 38 42 130 124 3 26 17 17 143 Greatest Support 88 | 40 40 40 40 43 88 75 3 26 21 21 74 Greatest Overweight (x) 32 | . . 1 . . 7 32 . 1 1 . 2 Average Overweight (x) . | . . . . . 1 2 . . . . . Largest Inventory Capacity 25 | 8 15 15 15 15 25 25 5 5 5 5 25 Average Capacity 16 | 7 14 15 15 15 20 22 5 5 5 5 7 Most Carried 25 | 7 15 15 13 15 25 23 5 5 5 5 5 Average Carried 14 | 4 11 13 12 14 18 17 4 4 4 5 4 Final Capacity 25 | 8 15 15 15 15 25 5 5 5 5 5 25 Final Carried 24 | 7 15 12 13 15 24 5 4 5 5 5 3 Scrap Suit Usage (%) 5 | . . . . . 19 . . . . . . Parts Cannibalized 7 | . . . . . 7 . . . . . . Class Distribution -------------------- 59% | Mutant 28% | Scavenger-Mutant 11% | Derelict-Mutant Dominant Class ---------------- Mutant | -10/Materials Mutant | -10/Subcaves Mutant | -9/Recycling Mutant | -9/Scraptown Scavenger-Mutant | -6/Factory Scavenger-Mutant | -6/Lower Caves Mutant | -6/Lower Caves Mutant | -5/Factory Mutant | -4/Factory Mutant | -4/Waste Mutant | -4/Factory Resources | -11 -10 -10 -9 -9 -6 -6 -6 -5 -4 -4 -4 ----------- Run | Yrd Mat Sub Rec Scr Fac Low Low Fac Fac Was Fac Matter Collected 3027 | 271 342 220 10 70 1304 351 . 58 11 . 390 Remotely . | . . . . . . . . . . . . Salvage Created 5293 | 120 538 691 . . 2562 579 15 51 . . 737 Parts 266 | 7 46 38 . . 131 20 . 3 . . 21 Haulers Intercepted 6 | . 2 . . . 4 . . . . . . Recyclers Shooed 4 | . . . . . 4 . . . . . . Parts Field Recycled . | . . . . . . . . . . . . Retrieved Matter . | . . . . . . . . . . . . Parts Self-Destructed 34 | . . 16 . . . 18 . . . . . Prevented . | . . . . . . . . . . . . Parts Restored . | . . . . . . . . . . . . Kills | -11 -10 -10 -9 -9 -6 -6 -6 -5 -4 -4 -4 ------- Run | Yrd Mat Sub Rec Scr Fac Low Low Fac Fac Was Fac Combat Hostiles Destroyed 83 | . 14 17 . . 32 12 1 2 . . 5 Melee 2 | . . . . . . . . . . . 2 Guns 25 | . 14 . . . 7 . 1 . . . 3 Cannons 41 | . . 11 . . 22 6 . 2 . . . AOE 13 | . . 6 . . 1 6 . . . . . Classes Destroyed 16 | 2 3 3 . . 8 . . . . . . Worker 9 | . . . . . 6 . . . . . 3 Builder 2 | . . . . . 2 . . . . . . Tunneler 4 | 2 1 . . . 1 . . . . . . Hauler 6 | . 2 . . . 4 . . . . . . Recycler 8 | 1 . . . . 4 . . . . . 3 Operator 1 | . . . . . 1 . . . . . . Turret 2 | . . 2 . . . . . . . . . Watcher 1 | . . . . . 1 . . . . . . Swarmer 19 | . 6 3 . . 3 3 1 2 . . 1 Grunt 30 | . 8 1 . . 14 7 . . . . . Duelist 2 | . . . . . 1 1 . . . . . Sentry 4 | . . 1 . . 3 . . . . . . Specialist 1 | . . . . . 1 . . . . . . Hunter 5 | . . . . . 2 1 . . . . 2 Programmer 10 | . . . . . 8 . . . . . 2 Subdweller 12 | . . 12 . . . . . . . . . Best Kill Streak 6 | 2 3 3 . . 4 4 1 2 . . 6 Combat Bots Only 4 | . 3 3 . . 4 4 1 2 . . 2 Max Kills in Single Turn 2 | 1 1 1 . . 1 2 1 1 . . 1 Gunslinging . | . . . . . . . . . . . . Exploded 2 | . . 1 . . 1 2 . . . . . Melee 1 | . . . . . . . . . . . 1 Uniques/NPCs Destroyed . | . . . . . . . . . . . . Combat | -11 -10 -10 -9 -9 -6 -6 -6 -5 -4 -4 -4 -------- Run | Yrd Mat Sub Rec Scr Fac Low Low Fac Fac Was Fac Hostile Shots Fired 1007 | . 83 151 . . 249 250 7 88 18 . 161 Missed 326 | . 25 52 . . 70 72 1 33 9 . 64 Hits 681 | . 58 99 . . 179 178 6 55 9 . 97 Melee 4 | . . . . . 1 3 . . . . . Projectile 677 | . 58 99 . . 178 175 6 55 9 . 97 Critical Strikes 16 | . . 1 . . 5 2 . 2 1 . 5 Part Disruptions 1 | . . . . . 1 . . . . . . Damage Taken 10623 | . 664 1361 . . 3187 2356 99 976 316 . 1664 Core 2659 | . 89 143 . . 247 330 64 636 215 . 935 Absorbed by Shields . | . . . . . . . . . . . . Regen/Repaired (Parts) 67 | . . . . . 67 . . . . . . Core Remaining (%) 41 | 100 . . . 7 . . 24 36 . . . Volleys Fired 337 | 8 66 83 . . 127 30 4 7 4 . 8 Largest 2 | 2 2 2 . . 2 2 1 1 1 . 2 Hottest 136 | 60 136 136 . . 90 125 24 90 20 . 81 Shots Fired 570 | 16 130 145 . . 196 52 4 7 4 . 16 Gun 211 | 16 128 . . . 53 . 4 2 . . 8 Cannon 334 | . 2 131 . . 143 45 . 5 . . 8 Launcher 21 | . . 14 . . . 7 . . . . . Special 4 | . . . . . . . . . 4 . . Kinetic 230 | 8 65 . . . 135 . 4 2 . . 16 Thermal 319 | 8 65 131 . . 61 45 . 5 4 . . Explosive 21 | . . 14 . . . 7 . . . . . Electromagnetic . | . . . . . . . . . . . . Robot Hit Streak 37 | 9 12 37 . . 15 7 8 8 . . 9 Robot Miss Streak 4 | 1 4 3 . . 2 2 4 2 . . 2 Penetration Max . | . . . . . . . . . . . . Secondary Targets . | . . . . . . . . . . . . Shots Hit Robots 373 | 12 85 76 . . 138 33 4 7 . . 18 Core Hits 192 | 5 34 36 . . 79 20 2 3 . . 13 Critical Kills 6 | . . 1 . . 5 . . . . . . Critical Parts Destroyed . | . . . . . . . . . . . . Critical Strikes 10 | . . 1 . . 7 . . . . . 2 Meltdown 4 | . . 1 . . 3 . . . . . . Destroy 2 | . . . . . 2 . . . . . . Blast 3 | . . . . . 2 . . . . . 1 Sever 1 | . . . . . . . . . . . 1 Melee Attacks 14 | . . . . . . . . . . . 14 Impact . | . . . . . . . . . . . . Slashing 14 | . . . . . . . . . . . 14 Piercing . | . . . . . . . . . . . . Sneak Attacks 6 | . . . . . . . . . . . 6 Combat Hostiles . | . . . . . . . . . . . . Follow-up Attacks . | . . . . . . . . . . . . Damage Inflicted 10728 | 132 811 2092 . . 5037 1488 51 221 . . 896 Guns 2168 | 132 791 . . . 992 . 51 42 . . 160 Cannons 6096 | . 20 1409 . . 3404 1002 . 171 . . 90 Explosions 1671 | . . 683 . . 508 480 . . . . . Melee 594 | . . . . . . . . . . . 594 Ramming 199 | . . . . . 133 6 . 8 . . 52 Kinetic 2911 | 52 364 . . . 2152 . 51 42 . . 250 Thermal 5514 | 80 447 1409 . . 2405 1002 . 171 . . . Explosive 1359 | . . 683 . . 196 480 . . . . . Electromagnetic 151 | . . . . . 151 . . . . . . Impact . | . . . . . . . . . . . . Slashing 594 | . . . . . . . . . . . 594 Piercing . | . . . . . . . . . . . . Highest Corruption 11 | . . . . . 9 9 9 . 2 9 11 Average Corruption 5 | . . . . . 4 9 9 . 1 7 8 Corruption Purged 3 | . . . . . . . . . . . 3 Corruption Blocked . | . . . . . . . . . . . . Effects 124 | . . . . . 68 42 2 . 1 1 10 Message Errors 25 | . . . . . 13 10 . . . . 2 Matter Fused 31 | . . . . . 14 11 1 . 1 . 4 Heat Flow Errors 20 | . . . . . 13 6 1 . . . . Energy Discharges 19 | . . . . . 11 7 . . . . 1 Data Loss (minor) 15 | . . . . . 8 4 . . . 1 2 Data Loss (major) 3 | . . . . . 2 . . . . . 1 Misfires 6 | . . . . . 4 2 . . . . . Alerts 1 | . . . . . 1 . . . . . . Weapon Failures 4 | . . . . . 2 2 . . . . . Overload Shots . | . . . . . . . . . . . . Overflow Damage 343 | . . 6 . . 336 . . 1 . . . Projectiles 149 | . . 3 . . 145 . . 1 . . . Explosions 180 | . . 3 . . 177 . . . . . . Melee 14 | . . . . . 14 . . . . . . Knockbacks 15 | . . . . . 12 . . . . . 3 Impact 2 | . . . . . . . . . . . 2 Kinetic 12 | . . . . . 11 . . . . . 1 Secondary 1 | . . . . . 1 . . . . . . Self-Inflicted Damage 446 | . . 8 . . 309 101 . 4 . . 24 Shots 8 | . . 1 . . 4 3 . . . . . Rammed 22 | . . . . . 6 4 . 1 . . 11 Targets Rammed 23 | . . . . . 7 4 . 1 . . 11 Kicked . | . . . . . . . . . . . . Crushed 1 | . . . . . 1 . . . . . . Highest Temperature 384 | 40 189 239 . . 279 384 81 36 . . 177 Average Temperature 86 | 15 54 97 . . 87 163 56 17 . . 79 Received Heat Transfer 2511 | . 297 486 . . 639 807 9 123 66 . 84 Effects 4 | . . . . . 2 2 . . . . . Shutdowns 1 | . . . . . . 1 . . . . . Energy Bleed 2 | . . . . . 2 . . . . . . Matter Decay 1 | . . . . . . 1 . . . . . Siege Activations . | . . . . . . . . . . . . Martial Activations . | . . . . . . . . . . . . Shielding Activations . | . . . . . . . . . . . . Robots Disrupted . | . . . . . . . . . . . . Combat Hostiles . | . . . . . . . . . . . . Robots Corrupted 1 | . . . . . 1 . . . . . . Combat Hostiles . | . . . . . . . . . . . . Parts Fried 2 | . . . . . 2 . . . . . . Impact Corruptions 2 | . . . . . 2 . . . . . . Robots Melted 4 | . . 1 . . 3 . . . . . . Combat Hostiles 2 | . . . . . 2 . . . . . . Parts Melted 24 | . 2 4 . . 9 8 . . . . 1 Heat Transferred 5990 | 175 1012 2553 . . 450 1550 . 250 . . . Parts Sabotaged . | . . . . . . . . . . . . Parts Stolen . | . . . . . . . . . . . . Parts Stripped . | . . . . . . . . . . . . Power Chain Reactions . | . . . . . . . . . . . . Alert | -11 -10 -10 -9 -9 -6 -6 -6 -5 -4 -4 -4 ------- Run | Yrd Mat Sub Rec Scr Fac Low Low Fac Fac Was Fac Maximum Alert Level 2 | . . . . . 2 . . . . . . Low Security (%) 77 | 100 100 . 100 . 56 . . 100 100 100 100 Level 1 1 | . . . . . 3 . . . . . . Level 2 20 | . . . . . 39 . . . . . . Level 3 . | . . . . . . . . . . . . Level 4 . | . . . . . . . . . . . . Level 5 . | . . . . . . . . . . . . High Security . | . . . . . . . . . . . . Max Security . | . . . . . . . . . . . . Peak Influence 585 | 10 143 . 74 . 585 . . 85 45 8 77 Initial 74 | . . . 74 . . . . 27 34 8 . Average 142 | . 55 . 15 . 236 . . 33 14 2 33 Influence Increases 2908 | 15 431 200 134 . 1277 295 44 220 45 . 247 Destroy 0b10 Robot/C 1480 | . 280 140 . . 640 240 40 40 . . 100 Destroy 0b10 Robot/NC 155 | 15 15 . . . 95 . . . . . 30 Destroy Leader 324 | . 64 . . . 200 40 . . . . 20 Allied During Kill 4 | . . . . . . . 4 . . . . Successful Hack 59 | . 27 . 14 . 12 . . . . . 6 Select Force Hacks 120 | . . . 120 . . . . . . . . Disable Machine 165 | . . . . . 165 . . . . . . Destroy Structure 76 | . . . . . 60 . . . . . 16 Partial Spotted 30 | . . . . . 15 . . 15 . . . Lose Combat Pursuer 495 | . 45 60 . . 90 15 . 165 45 . 75 Influence Decreases 2847 | 15 408 67 290 . 697 875 . 194 90 25 186 Entered New Map 379 | . . 12 82 . . 215 . 17 36 17 . Time Decay 2008 | 15 388 35 208 . 557 450 . 157 54 8 136 Lost Part 460 | . 20 20 . . 140 210 . 20 . . 50 Squads Dispatched 27 | . 2 . . . 12 . . 3 5 . 5 Investigation 5 | . 1 . . . . . . 1 2 . 1 Extermination 12 | . . . . . 8 . . 1 1 . 2 Reinforcement 9 | . 1 . . . 4 . . . 2 . 2 Assault . | . . . . . . . . . . . . Garrison 1 | . . . . . . . . 1 . . . Intercept . | . . . . . . . . . . . . Searches Triggered . | . . . . . . . . . . . . Construction Impeded . | . . . . . . . . . . . . Haulers Reinforced 1 | . . . . . . . . . . . 1 Active Scanning Responses . | . . . . . . . . . . . . Cargo Convoy Interrupts . | . . . . . . . . . . . . Stealth | -11 -10 -10 -9 -9 -6 -6 -6 -5 -4 -4 -4 --------- Run | Yrd Mat Sub Rec Scr Fac Low Low Fac Fac Was Fac Distress Signals 4 | . 2 . . . . . . 1 . . 1 Communications Jammed 13 | . . . . . 13 . . . . . . Distress Signals 12 | . . . . . 12 . . . . . . Times Spotted 177 | . 30 21 . . 53 13 3 22 8 6 21 Peak Tracking Total 9 | . 5 6 . . 6 4 4 7 6 6 9 Tactical Retreats 21 | . 2 2 . . 5 1 . 7 1 . 3 Traps | -11 -10 -10 -9 -9 -6 -6 -6 -5 -4 -4 -4 ------- Run | Yrd Mat Sub Rec Scr Fac Low Low Fac Fac Was Fac Traps Triggered 9 | . 1 1 . . 2 . . . 5 . . Indirectly . | . . . . . . . . . . . . Trap Hack Attempts . | . . . . . . . . . . . . Triggered . | . . . . . . . . . . . . Disarmed . | . . . . . . . . . . . . Reprogrammed . | . . . . . . . . . . . . Reused . | . . . . . . . . . . . . Traps Extracted . | . . . . . . . . . . . . Installed . | . . . . . . . . . . . . Triggered . | . . . . . . . . . . . . Most Traps Carried 1 | . . . . 1 . . . . . . . Machines | -11 -10 -10 -9 -9 -6 -6 -6 -5 -4 -4 -4 ---------- Run | Yrd Mat Sub Rec Scr Fac Low Low Fac Fac Was Fac Machines Disabled 14 | . . 3 . . 11 . . . . . . Max in Single Turn 4 | . . 1 . . 4 . . . . . . Garrison Access 1 | . . . . . 1 . . . . . . Machines Repaired . | . . . . . . . . . . . . Machines Dismantled . | . . . . . . . . . . . . Machines Sabotaged . | . . . . . . . . . . . . Overloaded Fab Kills . | . . . . . . . . . . . . Hacking | -11 -10 -10 -9 -9 -6 -6 -6 -5 -4 -4 -4 --------- Run | Yrd Mat Sub Rec Scr Fac Low Low Fac Fac Was Fac Machines Accessed 37 | . 6 2 6 9 7 . . 2 1 . 4 Terminals 11 | . 5 . 1 . 2 . . 1 . . 2 Fabricators . | . . . . . . . . . . . . Repair Stations 1 | . . . . . . . . . 1 . . Recycling Units 9 | . 1 . 4 . 3 . . . . . 1 Scanalyzers 1 | . . . . . 1 . . . . . . Garrison Access 3 | . . . . . 1 . . 1 . . 1 Total Hacks 114 | . 19 7 11 53 11 . . 4 2 . 7 Successful 84 | . 7 7 10 53 4 . . . . . 3 Failed 30 | . 12 . 1 . 7 . . 4 2 . 4 Catastrophic 7 | . 1 . . . 2 . . 2 1 . 1 Database Lockouts . | . . . . . . . . . . . . Manual 19 | . 9 . 5 . . . . 3 . . 2 Terminals 25 | . 15 . 1 . 2 . . 3 . . 4 Fabricators . | . . . . . . . . . . . . Repair Stations 2 | . . . . . . . . . 2 . . Recycling Units 16 | . 4 . 5 . 6 . . . . . 1 Scanalyzers 2 | . . . . . 2 . . . . . . Garrison Access 4 | . . . . . 1 . . 1 . . 2 Terminal Hacks 73 | . 5 7 6 53 1 . . . . . 1 Record 57 | . . 6 5 46 . . . . . . . Robot Analysis 6 | . . . . 6 . . . . . . . Prototype ID Bank 1 | . 1 . . . . . . . . . . Open DSF 1 | . . . . . . . . . . . 1 Locate Traps 3 | . 3 . . . . . . . . . . Hauler Manifests 2 | . 1 . . . 1 . . . . . . Zone Layout 1 | . . . 1 . . . . . . . . Proto ID Catalog 2 | . . 1 . 1 . . . . . . . Fabricator Hacks . | . . . . . . . . . . . . Repair Station Hacks . | . . . . . . . . . . . . Recycling Unit Hacks 3 | . 1 . . . 1 . . . . . 1 Report Inventory 2 | . . . . . 1 . . . . . 1 Retrieve Components 1 | . 1 . . . . . . . . . . Scanalyzer 1 | . . . . . 1 . . . . . . Retrieve Study 1 | . . . . . 1 . . . . . . Garrison Access Hacks 1 | . . . . . 1 . . . . . . Seal Access 1 | . . . . . 1 . . . . . . Unauthorized Hacks 6 | . 1 . 4 . . . . . . . 1 Terminals 2 | . 1 . . . . . . . . . 1 Assimilate 1 | . . . . . . . . . . . 1 Botnet 1 | . 1 . . . . . . . . . . Fabricators . | . . . . . . . . . . . . Repair Stations . | . . . . . . . . . . . . Recycling Units 4 | . . . 4 . . . . . . . . Tunnel 4 | . . . 4 . . . . . . . . Scanalyzers . | . . . . . . . . . . . . Garrison Access . | . . . . . . . . . . . . Data Cores Recovered 1 | . . . . . 1 . . . . . . Used . | . . . . . . . . . . . . Hacking Detections 18 | . 5 . 2 . 6 . . 2 1 . 2 Full Trace Events 3 | . . . . . . . . 1 1 . 1 Feedback Events . | . . . . . . . . . . . . Feedback Blocked . | . . . . . . . . . . . . Robot Schematics Acquired . | . . . . . . . . . . . . Robots Built . | . . . . . . . . . . . . Authchips . | . . . . . . . . . . . . Time . | . . . . . . . . . . . . Total Robot Build Rating . | . . . . . . . . . . . . Part Schematics Acquired . | . . . . . . . . . . . . Parts Built . | . . . . . . . . . . . . Authchips . | . . . . . . . . . . . . Time . | . . . . . . . . . . . . Total Part Build Rating . | . . . . . . . . . . . . Part Studies Acquired 1 | . . . . . 1 . . . . . . Parts Repaired . | . . . . . . . . . . . . Time . | . . . . . . . . . . . . Parts Recycled . | . . . . . . . . . . . . Recycled Matter . | . . . . . . . . . . . . Retrieved Matter . | . . . . . . . . . . . . Retrieved Components 10 | . 10 . . . . . . . . . . Parts Scanalyzed . | . . . . . . . . . . . . Part Schematics Acquired . | . . . . . . . . . . . . Parts Damaged . | . . . . . . . . . . . . Bothacking | -11 -10 -10 -9 -9 -6 -6 -6 -5 -4 -4 -4 ------------ Run | Yrd Mat Sub Rec Scr Fac Low Low Fac Fac Was Fac Used RIF Installer . | . . . . . . . . . . . . Robots Hacked . | . . . . . . . . . . . . Non-combat . | . . . . . . . . . . . . Combat . | . . . . . . . . . . . . Robot Hacks Applied . | . . . . . . . . . . . . Relay Couplers Released . | . . . . . . . . . . . . Fabnet Peak Effective % . | . . . . . . . . . . . . Robots Rewired . | . . . . . . . . . . . . Allies Hacked . | . . . . . . . . . . . . Hacks Repelled . | . . . . . . . . . . . . Allies | -11 -10 -10 -9 -9 -6 -6 -6 -5 -4 -4 -4 -------- Run | Yrd Mat Sub Rec Scr Fac Low Low Fac Fac Was Fac Total Allies 2 | . . . . . . . 1 . . . 1 Largest Group 1 | . . . . . . . 1 . . . 1 Highest-Rated Group 141 | . . . . . . . 141 . . . 10 Highest-Rated Ally 141 | . . . . . . . 141 . . . 10 Total Orders . | . . . . . . . . . . . . Ally Attacks 2 | . . . . . . . 2 . . . . Total Damage 131 | . . . . . . . 131 . . . . Kills 1 | . . . . . . . 1 . . . . Allies Corrupted . | . . . . . . . . . . . . Allies Melted . | . . . . . . . . . . . . Intel | -11 -10 -10 -9 -9 -6 -6 -6 -5 -4 -4 -4 ------- Run | Yrd Mat Sub Rec Scr Fac Low Low Fac Fac Was Fac Active Infowar (turns) 4236 | 8 462 . . . 3238 1 . . 173 61 293 Sensors 290 | . . . . . . . . . 173 61 56 Traps 236 | . . . . . . . . . . . 236 Seismic 3275 | 8 462 . . . 2805 . . . . . . Jamming 3064 | . . . . . 3062 1 . . . . 1 Robot Analysis Total 6 | . . . . 6 . . . . . . . Derelict Logs Recovered 4 | . . 2 . . . 2 . . . . . Drone Launches . | . . . . . . . . . . . . Drone Recoveries . | . . . . . . . . . . . . Exploration | -11 -10 -10 -9 -9 -6 -6 -6 -5 -4 -4 -4 ------------- Run | Yrd Mat Sub Rec Scr Fac Low Low Fac Fac Was Fac Turns Passed 13680 | 161 1254 2452 680 3370 3551 1134 33 376 215 61 393 Spaces Moved 9164 | 81 621 1370 420 2086 2109 715 48 759 358 133 464 Core 911 | 7 . . . . . 312 48 168 295 . 81 Treads 5331 | 74 621 1370 420 2086 760 . . . . . . Legs 201 | . . . . . . 201 . . . . . Wheels 1660 | . . . . . 1349 202 . . . . 109 Hover 347 | . . . . . . . . . 63 133 151 Flight 714 | . . . . . . . . 591 . . 123 Fastest Speed 37 | 50 160 160 160 160 115 50 50 37 46 46 40 Average Speed 131 | 150 160 160 160 160 136 135 50 40 49 46 60 Slowest Speed 1650 | 160 160 240 160 160 220 1650 50 120 120 46 125 Overloaded Moves . | . . . . . . . . . . . . Propulsion Burnouts . | . . . . . . . . . . . . Robots Hopped 12 | . . . . . . . . 12 . . . Potential Cave-ins . | . . . . . . . . . . . . Cave-ins Triggered . | . . . . . . . . . . . . Exploration Rate (%) 50 | 4 91 80 63 91 51 88 8 23 13 78 12 Regions Visited 11 Branch Regions 5 Pre-discovered Areas 7 | . . 1 4 2 . . . . . . . Known Exits Taken 3 | . . . . . 1 . 1 1 . . . Unknown Exits Taken 6 | 1 1 1 1 1 . 1 . . . . . Scrap Searched 13 | . . 4 . 6 . 3 . . . . . Spaces Dug . | . . . . . . . . . . . . Terrain Destroyed 205 | . . 63 . . 66 68 . . . . 8 Melee . | . . . . . . . . . . . . Projectile 36 | . . . . . 15 13 . . . . 8 AOE 169 | . . 63 . . 51 55 . . . . . Terrain Rammed . | . . . . . . . . . . . . Walls Destroyed . | . . . . . . . . . . . . Machines Disabled . | . . . . . . . . . . . . Actions | -11 -10 -10 -9 -9 -6 -6 -6 -5 -4 -4 -4 --------- Run | Yrd Mat Sub Rec Scr Fac Low Low Fac Fac Was Fac Total 10230 | 102 766 1486 428 2124 2628 794 52 807 381 132 530 Wait 383 | . 44 13 7 2 256 19 . 35 2 . 5 Move 9133 | 80 620 1369 419 2085 2108 714 47 737 358 132 464 Hop 10 | . . . . . . . . 10 . . . Pick Up 100 | 6 12 4 1 14 52 4 . 3 4 . . Fast Attach 60 | 7 2 . 1 . 8 4 . 10 6 . 22 Attach 38 | . . 3 . . 15 14 1 1 2 . 2 Detach 5 | . . . . . 2 2 . 1 . . . Swap 48 | 1 10 6 . 7 19 3 . . . . 2 Drop 77 | . 12 8 . 16 34 . . 3 2 . 2 Fire 337 | 8 66 83 . . 127 30 4 7 4 . 8 Melee 14 | . . . . . . . . . . . 14 Ram 18 | . . . . . 5 2 . . . . 11 Kick . | . . . . . . . . . . . . Crush 4 | . . . . . 2 2 . . . . . Escape Stasis . | . . . . . . . . . . . . Rewire . | . . . . . . . . . . . . Trap . | . . . . . . . . . . . . Miscellaneous 3 | . . . . . . . . . 3 . . Route ------- -11/Scrapyard -10/Materials (discovered 5 exits: [*Mat x3] / [*Min] / *Sub) -10/Subcaves (discovered 3 exits: [*Mat x2] / *Rec) -9/Recycling -9/Scraptown (discovered 2 exits: *Fac x2) -6/Factory (discovered 6 exits: *Fac x4 / *Low x2) -6/Lower Caves -6/Lower Caves -5/Factory (discovered 3 exits: *Fac x2 / Upp) -4/Factory -4/Waste -4/Factory History --------- Turn | Location | Event 8 | -11/Scrapyard | Discovered new exit (range 16) 162 | -11/Scrapyard | Entered Materials 315 | -10/Materials | Build established: Mutant 423 | -10/Materials | Discovered new exit (range 3) 822 | -10/Materials | Discovered new exit (range 4) 870 | -10/Materials | Discovered new exit (range 11) 955 | -10/Materials | Discovered new exit (range 15) 1055 | -10/Materials | Build established: Scavenger-Mutant 1254 | -10/Materials | Discovered new exit (range 11) 1360 | -10/Materials | Build established: Mutant 1416 | -10/Materials | Entered Subcaves 1502 | -10/Subcaves | Visited 4L-MR0's lab 1521 | -10/Subcaves | Found Powered Cannon 1675 | -10/Subcaves | Learned location of Zion (-7) 1751 | -10/Subcaves | Shifting Twisted Machinery released Sub. Monowheel 1756 | -10/Subcaves | Shifting Twisted Machinery released Spk. Treads 2569 | -10/Subcaves | Ambushed by Subdwellers from Twisted Machinery 2651 | -10/Subcaves | Learned Materials garrison access intel 2652 | -10/Subcaves | Shifting Twisted Machinery released Mak. Shrapnel Gun 2962 | -10/Subcaves | Shifting Twisted Machinery released Scrap Shield 2990 | -10/Subcaves | Discovered new exit (range 8) 3120 | -10/Subcaves | Ambushed by Subdwellers from Twisted Machinery 3134 | -10/Subcaves | Core integrity fell below 50% 3182 | -10/Subcaves | Discovered new exit (range 11) 3195 | -10/Subcaves | A swath of the cavern ceiling suddenly collapsed 3242 | -10/Subcaves | Visited Clippyterm 3247 | -10/Subcaves | Learned 40 Factory zone layouts 3247 | -10/Subcaves | Learned Factory stockpile data 3744 | -10/Subcaves | Shifting Twisted Machinery released Spk. Treads 3797 | -10/Subcaves | Shifting Twisted Machinery released Flamer 3817 | -10/Subcaves | Discovered new exit (range 11) 3828 | -10/Subcaves | Core integrity fell below 20% 3868 | -10/Subcaves | Entered Recycling 4430 | -9/Recycling | Scanned before Scraplab entrance 4520 | -9/Recycling | Entered Scraplab 4545 | -9/Recycling | Discovered new exit (range 2) 4548 | -9/Recycling | Entered Scraptown 4774 | -9/Scraptown | Heard Great Nut preacher, LISTEN AND RECITE! 4896 | -9/Scraptown | Discovered new exit (range 7) 5595 | -9/Scraptown | Visited Cyclists 5666 | -9/Scraptown | Visited UFD Registry 5666 | -9/Scraptown | Registered with UFD as "Datasourcer" 5679 | -9/Scraptown | Visited SPCMW 5720 | -9/Scraptown | Visited Awakened 5760 | -9/Scraptown | Visited Shadow of the Wyrm 5784 | -9/Scraptown | Visited Red Mages 5978 | -9/Scraptown | Entered Cyclist Reading Room 6021 | -9/Scraptown | Visited Comm Corps 6182 | -9/Scraptown | Visited Modified Component R&D 6235 | -9/Scraptown | Visited Science Guys 6313 | -9/Scraptown | Visited Research Penetration Think Tank 6361 | -9/Scraptown | Visited Science Testing Area 6377 | -9/Scraptown | Visited Analyses Database 6432 | -9/Scraptown | Visited Scrap Suit Storage 6449 | -9/Scraptown | Found Scrap Suit 6512 | -9/Scraptown | Visited DA-N13 Charitable Foundation 6520 | -9/Scraptown | Found DCF Scrap (31 items) 6779 | -9/Scraptown | Visited Curators Association 6826 | -9/Scraptown | Build established: Derelict-Mutant 6827 | -9/Scraptown | Visited Botcube Research 6868 | -9/Scraptown | Visited A0-MCA Data Center 6881 | -9/Scraptown | Given an A rating by A0-MCA 6886 | -9/Scraptown | Found A0-MCA's Component Scanner 7650 | -9/Scraptown | Delivered Scrap Shield to a Scientist 7743 | -9/Scraptown | Found Lrg. Botcube 7820 | -9/Scraptown | Met Optimus 7820 | -9/Scraptown | Accepted into 0bPrime 7912 | -9/Scraptown | Discovered new exit (range 5) 7918 | -9/Scraptown | Entered Factory 7918 | -6/Factory | Evolved 8 slots: Power x1, Propulsion x2, Utility x5 7919 | -6/Factory | Identified exit to Factory 7919 | -6/Factory | Identified exit to Lower Caves 8449 | -6/Factory | Build established: Scavenger-Mutant 9424 | -6/Factory | Lost 3 parts (2n1w) 9437 | -6/Factory | Attached Powered Cannon, gained temporary slot: Power 10078 | -6/Factory | Discovered exit to Factory (range 15) 10114 | -6/Factory | Spotted B-75 Beast 10816 | -6/Factory | Lost 3 parts (2p1u) 11069 | -6/Factory | Build established: Mutant 11228 | -6/Factory | Lost 3 parts (2u1w) 11469 | -6/Factory | Entered Lower Caves 11471 | -6/Lower Caves | UFD Scientist delivered a prototype 11518 | -6/Lower Caves | Lost 4 parts (1p2n1u) 11518 | -6/Lower Caves | Found Prototype Protection 11518 | -6/Lower Caves | Identified Enh. Scrap Shield 11805 | -6/Lower Caves | Build established: Scavenger-Mutant 11856 | -6/Lower Caves | Learned location of 2 exits from Factory 12016 | -6/Lower Caves | Lost 6 parts (1n3u2w) 12377 | -6/Lower Caves | Attracted the attention of an 0b10 checkpoint 12409 | -6/Lower Caves | Core integrity fell below 50% 12438 | -6/Lower Caves | Released all parts (4) 12475 | -6/Lower Caves | Lost 10 parts (2p4n1u3w) 12526 | -6/Lower Caves | Learned Factory trap positions 12528 | -6/Lower Caves | Discovered new exit (range 15) 12603 | -6/Lower Caves | Entered another Lower Caves area 12632 | -6/Lower Caves | 1C-UTU showed up to help 12634 | -6/Lower Caves | 1C-UTU revealed a hidden path 12636 | -6/Lower Caves | Entered Factory 12636 | -5/Factory | Evolved 2 slots: Utility x2 12637 | -5/Factory | Identified exit to Upper Caves 12637 | -5/Factory | Identified exit to Factory 12638 | -5/Factory | Loaded intel: 114 trap records 12721 | -5/Factory | Build established: Mutant 12748 | -5/Factory | Discovered exit to Factory (range 13) 12770 | -5/Factory | Garrison activated, responded to threat 12982 | -5/Factory | Released all parts (10) 12995 | -5/Factory | Core integrity fell below 50% 13012 | -5/Factory | Entered another Factory area 13012 | -4/Factory | Evolved 2 slots: Propulsion x2 13227 | -4/Factory | Sucked down chute 13227 | -4/Factory | Entered Waste 13230 | -4/Waste | Spotted C-40 Crusher 13233 | -4/Waste | Spotted C-40 Crusher 13242 | -4/Waste | EMP discharged 13258 | -4/Waste | Spotted C-40 Crusher 13266 | -4/Waste | Spotted C-40 Crusher 13266 | -4/Waste | Spotted C-40 Crusher 13270 | -4/Waste | Spotted C-40 Crusher 13284 | -4/Waste | Discovered new exit (range 10) 13288 | -4/Waste | Entered Factory 13344 | -4/Factory | Released all parts (2) 13373 | -4/Factory | Core integrity fell below 50% 13375 | -4/Factory | Lost 5 parts (1p4n) 13383 | -4/Factory | System corruption reached 10% 13480 | -4/Factory | Core integrity fell below 20% 13681 | -4/Factory | Destroyed by G-67 Veteran with Field Laser Last Messages --------------- 13617_ U-05 Engineer lays Concrete. 13617_ Slug penetrates Wall. 13620_ Slug penetrates P-70 Sage. 13620_ Imp. Target Analyzer melted. 13620_ P-70 Sage destroyed. 13620_ Slug penetrates Wall. 13620_ U-05 Engineer builds a Door. 13621_ U-05 Engineer lays Concrete. 13623_ K-01 Serf collects debris. 13623_ U-05 Engineer lays Concrete. 13627_ K-01 Serf collects debris. 13632_ U-05 Engineer builds a Door. 13644_ System corrupted: Matter fused (-7). 13649_ K-01 Serf cleans the Pressure Siphon. 13659_ ALERT: Potential suspicious activity detected, Programmers report to Factory Zone 7R. 13663_ System corrupted: Matter fused (-9). 13664_ Com. Wheel destroyed. 13680_ System corrupted: Energy discharge (-110). 13680_ Slug penetrates S-27 Virus. 13680_ S-27 Virus destroyed. Map ----- +----------------------------------------------------+ | ???????????????????????????# #????# ### | | ???????????????????????????# #????+ ! " | | ???????????????????????????# #????# ### ] | | ???????????????????????????? ?????# #??? ### | | ???????????????????????????? ?????# ##+########### | | ???????????????????????????? ?????# ?# | | ????????????????????????? ? ?????# ?# | | ????????????????????????# ?????# ?# | | ????????????????????????# ?????# ?# | | ????????????????????????# ###### ?# """ """ | | ???????????????????????## ?# """ """ | | ??????????????????????? ?# """ """ | | ?????????????????????? ## | | ?????????????????????? # """ """ | | ?????????????????????? ! #^ """ """? | | ?????????????????????? + """ """ | | ?????????????????????? """ # | | ?????????????????????????? """ ############# | | ??????????????????????????# """ #??????????? | | ??????????????????????????# """ #??????????? | | ??????????????????????????# #??????????? | | ???????????????????######## """ #??????????? | | ???????????????????# # """ #??????????? | | ???????????????????# # """ #??????????? | | ???????????????????# # """ #??????????? | | ???????????????????# @# ##?????????? | | ???????????????????# [;% #?????????? | | ???????????????????# *#=gk#####+##+#?????????? | | ???????????????????######;##g##??? #?????????? | | ???????????????????????? ## #???? """#?????????? | | ???????????????????????? ## #??# T"#?????????? | | ???????????????????????? A #??# """#?????????? | | ???????????????????????? ## #??# #?????????? | | ???????????????????????? ## #??# #?????????? | | ???????????????????????? ?# #??########?????????? | | ???????????????????????" ?# #???????????????????? | | ???????????????????????" ?? ????????????????????? | | ??????????????????????? ?? ????????????????????? | | ???????????????????????" ?? ????????????????????? | | ???????????????????????" ?? ????????????????????? | | ???????????????????????? ?? ????????????????????? | | ???????????????????????????? ????????????????????? | | ???????????????????????????? ????????????????????? | | ?????????????????????????????????????????????????? | | ?????????????????????????????????????????????????? | | ?????????????????????????????????????????????????? | | ?????????????????????????????????????????????????? | | ?????????????????????????????????????????????????? | | ?????????????????????????????????????????????????? | | ?????????????????????????????????????????????????? | +----------------------------------------------------+ Best States ------------- Heat Dissipation 56 Energy Generation 39 Energy Capacity 490 Matter Stores 550 Matter Capacity 550 Sight Range 16 Robot Scan Range 16 Terrain Scan Density 210 Jamming Range 12 Base Temperature (-) 150 Corruption Block 15 Armor Coverage 800 Evasion (%) 62 Melee Accuracy 6 Core Analysis 6 Recoil Reduction 4 Energy Filtering 50 Offensive Hacking 10 Item Schematics ----------------- None Robot Schematics ------------------ None Fabricated ------------ Nothing Repaired ---------- Nothing Studied --------- Lgt. Treads | -6/Factory | Hacked Alien Tech Used ----------------- None Achievements -------------- Loot Taster Mistaken Identity Challenges ------------ None Game ------ Seed BladeLightningTether Manual? 0 Play Time 01:47:22 Cumulative 52.6 hours Start 2025.12.08 @ 21:49:12 End 2025.12.10 @ 00:26:55 Sessions 1 Manual Loads 0 Difficulty Rogue Special Mode None Game No. 114 Rogue 107 Adventurer 7 Explorer 0 Win Type - Total 1 Types 1/0/0/0/0/0/0/0/0/0 Lore% 27 Gallery% 38 Achievement% 27 Wizard Run 0 Options --------- Layout 0 ASCII 0 Keyboard 1 Movement Vi Keybinds 0 Fullscreen 1 Font 18/SmallcapsGlow Map View 112x50 Zoom Use 0% Tactical HUD 1 Map Filters NONE Filters NONE Steam 1 RUN: deb819bd-920d-45e7-be25-e786336d58ea